[Event "Djerba Festival Open-B 2025"]
[Site "Djerba"]
[Date "2025.02.18"]
[Round "3.20"]
[White "Baba, Jihed"]
[Black "Ajbara Jamal"]
[Result "0-1"]
[Annotator "NA"]
[ECO "B44"]
[WhiteElo "1669"]
[BlackElo "1898"]
[PlyCount "74"]
[EventDate "2025.02.15"]
[EventType "swiss"]
[EventCountry "TUN"]
[SourceTitle "playchess.com"]
[Source "ChessBase"]
[SourceQuality "1"]
[TimeControl "5400+30"]

1. e4 {[%emt 0:00:03]} c5 {[%emt 0:12:21]} 2. Nf3 {[%emt 0:01:24]} e6 {[%emt 0:02:34]} 3. d4 {[%emt 0:00:10]} cxd4 {[%emt 0:00:14]} 4. Nxd4 {[%emt 0:00:03]} Nc6 {[%emt 0:00:27]} 5. Nb5 {[%emt 0:00:07]} Nf6 {[%emt 0:00:24]} 6. Bf4 {[%emt 0:00:10]} e5 {[%emt 0:00:30]} 7. Bg5 {[%emt 0:00:05]} Qa5+ {[%emt 0:02:47]} 8. Qd2 {[%emt 0:00:08]} Bb4 {[%emt 0:06:21]} 9. c3 {[%emt 0:08:41]} Be7 {[%emt 0:06:35]} 10. Bxf6 {[%emt 0:05:06]} gxf6 {[%emt 0:09:28]} 11. N1a3 {[%emt 0:02:36]} O-O {[%emt 0:03:36]} 12. Nd6 {[%emt 0:09:51]} Qc7 {[%emt 0:06:57]} 13. Nf5 {[%emt 0:07:42]} Rd8 {[%emt 0:05:18]} 14. Nb5 {[%emt 0:02:32]} Qb6 {[%emt 0:01:39]} 15. Qh6 {[%emt 0:05:25]} Bf8 {[%emt 0:00:46]} 16. Qxf6 {[%emt 0:00:12]} d5 {[%emt 0:03:23]} 17. exd5 {[%emt 0:13:07]} Bxf5 {[%emt 0:06:21]} 18. Qxf5 {[%emt 0:00:31]} Ne7 {[%emt 0:04:28]} 19. Qg5+ {[%emt 0:02:36]} Ng6 {[%emt 0:00:33]} 20. h4 {[%emt 0:16:38]} Be7 {[%emt 0:00:50]} 21. Qg3 {[%emt 0:00:15]} Kh8 {[%emt 0:00:33]} 22. O-O-O {[%emt 0:06:07]} a6 {[%emt 0:04:24]} 23. h5 {[%emt 0:00:20]} Nf4 {[%emt 0:00:53]} 24. d6 {[%emt 0:00:06]} axb5 {[%emt 0:06:29]} 25. dxe7 {[%emt 0:00:15]} Rxd1+ {[%emt 0:00:33]} 26. Kxd1 {[%emt 0:00:02]} Qd6+ {[%emt 0:00:41]} 27. Kc2 {[%emt 0:01:39]} Qxe7 {[%emt 0:00:13]} 28. a3 {[%emt 0:06:48]} Qd7 {[%emt 0:05:36]} 29. Qe3 {[%emt 0:01:04]} f6 {[%emt 0:00:54]} 30. g3 {[%emt 0:00:34]} Nd5 {[%emt 0:01:30]} 31. Qd3 {[%emt 0:00:53]} Qc6 {[%emt 0:01:44]} 32. Rg1 {[%emt 0:03:44]} Qc5 {[%emt 0:01:15]} 33. Qf3 {[%emt 0:01:14]} b4 {[%emt 0:01:22]} 34. Bg2 {[%emt 0:01:23]} e4 {[%emt 0:01:16]} 35. Qe2 {[%emt 0:04:09]} bxc3 {[%emt 0:01:23]} 36. Bxe4 {[%emt 0:01:21]} cxb2+ {[%emt 0:00:21]} 37. Kb1 {[%emt 0:00:02]} Nc3+ {[%emt 0:00:22]} 0-1

[Event "Djerba Festival Open-B 2025"]
[Site "Djerba"]
[Date "2025.02.18"]
[Round "3.21"]
[White "Guinet, Andy"]
[Black "MEZGOURI NOUREDDINE"]
[Result "1/2-1/2"]
[Annotator "NA"]
[ECO "A01"]
[WhiteElo "1665"]
[BlackElo "1891"]
[PlyCount "50"]
[EventDate "2025.02.15"]
[EventType "swiss"]
[EventCountry "TUN"]
[SourceTitle "playchess.com"]
[Source "ChessBase"]
[SourceQuality "1"]
[TimeControl "5400+30"]

1. b3 {[%emt 0:00:03]} Nf6 {[%emt 0:00:14]} 2. Bb2 {[%emt 0:00:08]} d5 {[%emt 0:00:12]} 3. e3 {[%emt 0:00:15]} Nc6 {[%emt 0:00:18]} 4. c4 {[%emt 0:00:48]} d4 {[%emt 0:00:27]} 5. exd4 {[%emt 0:01:20]} Nxd4 {[%emt 0:00:12]} 6. Nf3 {[%emt 0:00:43]} c5 {[%emt 0:01:29]} 7. d3 {[%emt 0:07:41]} Bg4 {[%emt 0:00:27]} 8. Nbd2 {[%emt 0:01:46]} e6 {[%emt 0:01:28]} 9. Be2 {[%emt 0:01:39]} Nxe2 {[%emt 0:00:16]} 10. Qxe2 {[%emt 0:00:06]} Be7 {[%emt 0:00:29]} 11. O-O {[%emt 0:01:48]} O-O {[%emt 0:00:11]} 12. Qe3 {[%emt 0:01:41]} Bf5 {[%emt 0:01:17]} 13. d4 {[%emt 0:04:45]} Ng4 {[%emt 0:00:17]} 14. Qe2 {[%emt 0:02:52]} Bf6 {[%emt 0:04:11]} 15. Ne5 {[%emt 0:12:29]} Nxe5 {[%emt 0:02:26]} 16. dxe5 {[%emt 0:00:43]} Bd3 {[%emt 0:01:16]} 17. Qg4 {[%emt 0:03:09]} Bg5 {[%emt 0:03:26]} 18. Rfd1 {[%emt 0:02:48]} Bc2 {[%emt 0:00:26]} 19. Ne4 {[%emt 0:00:05]} Bxd1 {[%emt 0:06:08]} 20. Rxd1 {[%emt 0:03:14]} Qa5 {[%emt 0:03:11]} 21. Qxg5 {[%emt 0:08:28]} Qxa2 {[%emt 0:00:25]} 22. Nf6+ {[%emt 0:02:54]} Kh8 {[%emt 0:00:12]} 23. Nh5 {[%emt 0:00:06]} Rg8 {[%emt 0:00:46]} 24. Nxg7 {[%emt 0:02:16]} Rxg7 {[%emt 0:07:00]} 25. Rd8+ {[%emt 0:00:10]} Rxd8 {[%emt 1:06:16]} 1/2-1/2

[Event "Djerba Festival Open-B 2025"]
[Site "Djerba"]
[Date "2025.02.18"]
[Round "3.23"]
[White "Minde, Timothe"]
[Black "Dubourg, Bruno"]
[Result "1-0"]
[Annotator "NA"]
[ECO "B07"]
[WhiteElo "1879"]
[BlackElo "1661"]
[PlyCount "113"]
[EventDate "2025.02.15"]
[EventType "swiss"]
[EventCountry "TUN"]
[SourceTitle "playchess.com"]
[Source "ChessBase"]
[SourceQuality "1"]
[TimeControl "5400+30"]

1. e4 {[%emt 0:00:22]} g6 {[%emt 0:00:23]} 2. d4 {[%emt 0:00:18]} Bg7 {[%emt 0:00:09]} 3. Nc3 {[%emt 0:00:47]} d6 {[%emt 0:00:13]} 4. Be3 {[%emt 0:00:15]} Nf6 {[%emt 0:00:25]} 5. f3 {[%emt 0:00:08]} a6 {[%emt 0:00:40]} 6. Qd2 {[%emt 0:02:12]} b5 {[%emt 0:02:46]} 7. Bh6 {[%emt 0:03:59]} Bxh6 {[%emt 0:01:43]} 8. Qxh6 {[%emt 0:00:12]} Nbd7 {[%emt 0:01:13]} 9. O-O-O {[%emt 0:21:39]} e5 {[%emt 0:03:11]} 10. Nge2 {[%emt 0:08:55]} Bb7 {[%emt 0:02:33]} 11. dxe5 {[%emt 0:02:07]} Nxe5 {[%emt 0:00:33]} 12. Nf4 {[%emt 0:00:27]} Qe7 {[%emt 0:01:34]} 13. Nfd5 {[%emt 0:05:31]} Bxd5 {[%emt 0:03:44]} 14. Nxd5 {[%emt 0:00:27]} Nxd5 {[%emt 0:00:22]} 15. exd5 {[%emt 0:00:33]} O-O-O {[%emt 0:03:30]} 16. Qd2 {[%emt 0:01:00]} Kb7 {[%emt 0:23:35]} 17. a4 {[%emt 0:03:48]} c6 {[%emt 0:14:35]} 18. dxc6+ {[%emt 0:00:21]} Nxc6 {[%emt 0:04:15]} 19. axb5 {[%emt 0:00:21]} axb5 {[%emt 0:01:25]} 20. Bxb5 {[%emt 0:00:42]} Ra8 {[%emt 0:00:40]} 21. Kb1 {[%emt 0:01:33]} Qe6 {[%emt 0:04:03]} 22. Qd5 {[%emt 0:11:51]} Qxd5 {[%emt 0:02:06]} 23. Rxd5 {[%emt 0:00:10]} Kc7 {[%emt 0:03:02]} 24. Bxc6 {[%emt 0:01:38]} Kxc6 {[%emt 0:00:16]} 25. Rhd1 {[%emt 0:00:08]} Rhd8 {[%emt 0:00:25]} 26. c4 {[%emt 0:01:29]} Ra4 {[%emt 0:00:30]} 27. c5 {[%emt 0:00:17]} Rda8 {[%emt 0:01:02]} 28. cxd6 {[%emt 0:00:19]} Kd7 {[%emt 0:00:28]} 29. Rc5 {[%emt 0:04:16]} Ra1+ {[%emt 0:00:26]} 30. Kc2 {[%emt 0:00:06]} Rxd1 {[%emt 0:00:14]} 31. Kxd1 {[%emt 0:00:58]} Kxd6 {[%emt 0:00:12]} 32. Rc3 {[%emt 0:00:17]} Rb8 {[%emt 0:03:20]} 33. b3 {[%emt 0:00:25]} f5 {[%emt 0:00:31]} 34. Kc2 {[%emt 0:00:18]} h5 {[%emt 0:00:37]} 35. Rc4 {[%emt 0:00:31]} Re8 {[%emt 0:04:26]} 36. Kd3 {[%emt 0:00:40]} Kd5 {[%emt 0:00:24]} 37. b4 {[%emt 0:01:30]} g5 {[%emt 0:01:25]} 38. Rc5+ {[%emt 0:00:12]} Ke6 {[%emt 0:00:14]} 39. Rc6+ {[%emt 0:00:20]} Ke5 {[%emt 0:01:47]} 40. Rc5+ {[%emt 0:01:30]} Ke6 {[%emt 0:00:14]} 41. b5 {[%emt 0:00:25]} g4 {[%emt 0:01:03]} 42. b6 {[%emt 0:01:26]} h4 {[%emt 0:00:29]} 43. fxg4 {[%emt 0:01:15]} fxg4 {[%emt 0:01:59]} 44. b7 {[%emt 0:00:48]} Rb8 {[%emt 0:01:24]} 45. Rb5 {[%emt 0:00:09]} g3 {[%emt 0:01:00]} 46. hxg3 {[%emt 0:00:11]} hxg3 {[%emt 0:00:10]} 47. Ke4 {[%emt 0:00:14]} Kd6 {[%emt 0:00:28]} 48. Kf3 {[%emt 0:00:13]} Kc6 {[%emt 0:01:53]} 49. Rb1 {[%emt 0:00:11]} Rxb7 {[%emt 0:02:26]} 50. Rxb7 {[%emt 0:00:11]} Kxb7 {[%emt 0:00:05]} 51. Kxg3 {[%emt 0:00:13]} Kc7 {[%emt 0:00:11]} 52. Kf4 {[%emt 0:00:25]} Kd7 {[%emt 0:00:07]} 53. Kf5 {[%emt 0:00:20]} Ke7 {[%emt 0:00:07]} 54. Kg6 {[%emt 0:00:34]} Kf8 {[%emt 0:00:13]} 55. g4 {[%emt 0:00:17]} Kg8 {[%emt 0:00:05]} 56. g5 {[%emt 0:00:08]} Kh8 {[%emt 0:00:10]} 57. Kf7 {[%emt 0:00:13]} 1-0

[Event "Djerba Festival Open-B 2025"]
[Site "Djerba"]
[Date "2025.02.18"]
[Round "3.24"]
[White "Benzarti, Thabet"]
[Black "Perrusset, Barbara"]
[Result "0-1"]
[Annotator "NA"]
[ECO "D46"]
[WhiteElo "1664"]
[BlackElo "1869"]
[PlyCount "52"]
[EventDate "2025.02.15"]
[EventType "swiss"]
[EventCountry "TUN"]
[SourceTitle "playchess.com"]
[Source "ChessBase"]
[SourceQuality "1"]
[TimeControl "5400+30"]

1. d4 {[%emt 1:31:00]} d5 {[%emt 1:31:00]} 2. c4 {[%emt 0:00:30]} e6 {[%emt 0:00:30]} 3. Nc3 {[%emt 0:00:30]} Nf6 {[%emt 0:00:30]} 4. Nf3 {[%emt 0:00:30]} c6 {[%emt 0:00:30]} 5. e3 {[%emt 0:00:30]} Bd6 {[%emt 0:00:30]} 6. Qc2 {[%emt 0:00:30]} Nbd7 {[%emt 0:00:30]} 7. Bd3 {[%emt 0:00:30]} e5 {[%emt 0:00:30]} 8. dxe5 {[%emt 0:00:30]} Nxe5 {[%emt 0:00:30]} 9. Nxe5 {[%emt 0:00:30]} Bxe5 {[%emt 0:00:30]} 10. cxd5 {[%emt 0:00:30]} Nxd5 {[%emt 0:00:30]} 11. Nxd5 {[%emt 0:00:30]} Qxd5 {[%emt 0:00:30]} 12. O-O {[%emt 0:00:30]} Bc7 {[%emt 0:00:30]} 13. e4 {[%emt 0:00:30]} Qh5 {[%emt 0:00:30]} 14. f4 {[%emt 0:00:30]} Bb6+ {[%emt 0:00:30]} 15. Kh1 {[%emt 0:00:30]} Bg4 {[%emt 0:00:30]} 16. Bd2 {[%emt 0:00:30]} O-O-O {[%emt 0:00:30]} 17. Rae1 {[%emt 0:00:30]} Rd6 {[%emt 0:00:30]} 18. Be3 {[%emt 0:00:30]} Rh6 {[%emt 0:00:30]} 19. g3 {[%emt 0:00:30]} Ba5 {[%emt 0:00:30]} 20. Rc1 {[%emt 0:00:30]} Rd8 {[%emt 0:00:30]} 21. Bc4 {[%emt 0:00:30]} Rd2 {[%emt 0:00:30]} 22. Rf2 {[%emt 0:00:30]} Bf3+ {[%emt 0:00:30]} 23. Kg1 {[%emt 0:00:30]} Rxc2 {[%emt 0:00:30]} 24. Rcxc2 {[%emt 0:00:30]} Bxe4 {[%emt 0:00:30]} 25. Rc1 {[%emt 0:00:30]} Qh3 {[%emt 0:00:30]} 26. Bf1 {[%emt 0:00:30]} Qxg3+ {[%emt 0:00:30]} 0-1

[Event "Djerba Festival Open-B 2025"]
[Site "Djerba"]
[Date "2025.02.18"]
[Round "3.25"]
[White "Falezan, Arnaud"]
[Black "Garcia Matos, Richard Alejandro"]
[Result "1-0"]
[Annotator "ChessBase"]
[ECO "B01"]
[WhiteElo "1662"]
[BlackElo "2300"]
[PlyCount "59"]
[EventDate "2025.02.15"]
[EventType "swiss"]
[EventCountry "TUN"]
[SourceTitle "playchess.com"]
[Source "ChessBase"]
[SourceQuality "1"]
[TimeControl "5400+30"]

1. e4 {[%emt 0:00:03]} d5 {[%emt 0:00:09]} 2. exd5 {[%emt 0:00:08]} Qxd5 {[%emt 0:00:11]} 3. Nc3 {[%emt 0:00:07]} Qa5 {[%emt 0:01:01]} 4. d4 {[%emt 0:00:12]} Nf6 {[%emt 0:00:31]} 5. Bd2 {[%emt 0:00:19]} Bg4 {[%emt 0:02:20]} 6. f3 {[%emt 0:00:44]} Bh5 {[%emt 0:00:43]} 7. h4 {[%emt 0:05:05]} h6 {[%emt 0:00:35]} 8. Bd3 {[%emt 0:01:10]} c6 {[%emt 0:03:03]} 9. g4 {[%emt 0:02:20]} Bg6 {[%emt 0:01:15]} 10. Bxg6 {[%emt 0:00:51]} fxg6 {[%emt 0:00:34]} 11. Qe2 {[%emt 0:02:29]} Nbd7 {[%emt 0:02:05]} 12. Qe6 {[%emt 0:09:04]} O-O-O {[%emt 0:14:27]} 13. Nge2 {[%emt 0:02:43]} Qb4 {[%emt 0:04:38]} 14. O-O-O {[%emt 0:06:09]} Qd6 {[%emt 0:00:56]} 15. Nf4 {[%emt 0:03:14]} Kb8 {[%emt 0:11:00]} 16. Rhe1 {[%emt 0:02:40]} Nb6 {[%emt 0:05:59]} 17. Nxg6 {[%emt 0:01:07]} Qxe6 {[%emt 0:02:24]} 18. Rxe6 {[%emt 0:00:18]} Rg8 {[%emt 0:00:34]} 19. Nxf8 {[%emt 0:05:01]} Rgxf8 {[%emt 0:04:12]} 20. Rxe7 {[%emt 0:04:32]} Rxd4 {[%emt 0:00:54]} 21. Rxg7 {[%emt 0:01:36]} Nfd5 {[%emt 0:04:30]} 22. Nxd5 {[%emt 0:09:33]} Nxd5 {[%emt 0:00:55]} 23. Bxh6 {[%emt 0:01:47]} Rxd1+ {[%emt 0:02:01]} 24. Kxd1 {[%emt 0:00:09]} Rxf3 {[%emt 0:00:52]} 25. h5 {[%emt 0:12:12]} Rh3 {[%emt 0:04:29]} 26. Bg5 {[%emt 0:01:23]} a6 {[%emt 0:11:27]} 27. h6 {[%emt 0:00:34]} Ka7 {[%emt 0:00:07]} 28. h7 {[%emt 0:03:24]} Rh2 {[%emt 0:03:25]} 29. c4 {[%emt 0:02:15]} Rh1+ {[%emt 0:01:09]} 30. Ke2 {[%emt 0:24:21]} 1-0

[Event "Djerba Festival Open-B 2025"]
[Site "Djerba"]
[Date "2025.02.18"]
[Round "3.26"]
[White "Baroukh, Pau"]
[Black "Skhiri Youssef"]
[Result "0-1"]
[Annotator "NA"]
[ECO "E94"]
[WhiteElo "1649"]
[BlackElo "1808"]
[PlyCount "54"]
[EventDate "2025.02.15"]
[EventType "swiss"]
[EventCountry "TUN"]
[SourceTitle "playchess.com"]
[Source "ChessBase"]
[SourceQuality "1"]
[TimeControl "5400+30"]

1. Nf3 {[%emt 1:31:00]} Nf6 {[%emt 1:31:00]} 2. c4 {[%emt 0:00:30]} g6 {[%emt 0:00:30]} 3. d4 {[%emt 0:00:30]} Bg7 {[%emt 0:00:30]} 4. Nc3 {[%emt 0:00:30]} O-O {[%emt 0:00:30]} 5. e4 {[%emt 0:00:30]} d6 {[%emt 0:00:30]} 6. Be2 {[%emt 0:00:30]} e5 {[%emt 0:00:30]} 7. d5 {[%emt 0:00:30]} a5 {[%emt 0:00:30]} 8. O-O {[%emt 0:00:30]} Nbd7 {[%emt 0:00:30]} 9. Bg5 {[%emt 0:00:30]} h6 {[%emt 0:00:30]} 10. Bh4 {[%emt 0:00:30]} g5 {[%emt 0:00:30]} 11. Bg3 {[%emt 0:00:30]} Nc5 {[%emt 0:00:30]} 12. Qc2 {[%emt 0:00:30]} Nh5 {[%emt 0:00:30]} 13. a3 {[%emt 0:00:30]} a4 {[%emt 0:00:30]} 14. Ne1 {[%emt 0:00:30]} Nb3 {[%emt 0:00:30]} 15. Rd1 {[%emt 0:00:30]} Nd4 {[%emt 0:00:30]} 16. Qd3 g4 {[%emt 0:00:30]} 17. Nc2 {[%emt 0:01:00]} f5 {[%emt 0:00:30]} 18. h3 {[%emt 0:00:30]} fxe4 {[%emt 0:00:30]} 19. Nxe4 {[%emt 0:00:30]} Nxg3 {[%emt 0:00:30]} 20. Nxg3 {[%emt 0:00:30]} gxh3 {[%emt 0:00:30]} 21. Nxd4 {[%emt 0:00:30]} exd4 {[%emt 0:00:30]} 22. Qe4 {[%emt 0:00:30]} hxg2 {[%emt 0:00:30]} 23. Bd3 {[%emt 0:00:30]} gxf1=Q+ {[%emt 0:00:30]} 24. Rxf1 {[%emt 0:00:30]} Qg5 {[%emt 0:00:30]} 25. Kh2 {[%emt 0:00:30]} Rf4 {[%emt 0:00:30]} 26. Qe8+ {[%emt 0:00:30]} Bf8 {[%emt 0:00:30]} 27. Kg2 {[%emt 0:00:30]} Bh3+ {[%emt 0:00:30]} 0-1

[Event "Djerba Festival Open-B 2025"]
[Site "Djerba"]
[Date "2025.02.18"]
[Round "3.27"]
[White "Nahom, Perez"]
[Black "Badya, Vasily"]
[Result "1-0"]
[Annotator "NA"]
[ECO "E90"]
[WhiteElo "1641"]
[BlackElo "1765"]
[PlyCount "101"]
[EventDate "2025.02.15"]
[EventType "swiss"]
[EventCountry "TUN"]
[SourceTitle "playchess.com"]
[Source "ChessBase"]
[SourceQuality "1"]
[TimeControl "5400+30"]

1. d4 {[%emt 0:06:26]} Nf6 {[%emt 0:00:32]} 2. Nf3 {[%emt 0:00:33]} g6 {[%emt 0:00:11]} 3. c4 {[%emt 0:00:30]} Bg7 {[%emt 0:00:08]} 4. Nc3 {[%emt 0:00:38]} d6 {[%emt 0:00:39]} 5. e4 {[%emt 0:00:19]} O-O {[%emt 0:01:05]} 6. Bd3 {[%emt 0:01:49]} Bg4 {[%emt 0:04:21]} 7. h3 {[%emt 0:00:20]} Bxf3 {[%emt 0:00:40]} 8. Qxf3 {[%emt 0:00:02]} Nc6 {[%emt 0:00:24]} 9. Be3 {[%emt 0:01:18]} Nb4 {[%emt 0:02:37]} 10. Bb1 {[%emt 0:00:40]} Nd7 {[%emt 0:11:23]} 11. a3 {[%emt 0:02:01]} Nc6 {[%emt 0:00:27]} 12. Qd1 {[%emt 0:06:58]} e5 {[%emt 0:06:33]} 13. d5 {[%emt 0:02:06]} Nd4 {[%emt 0:07:30]} 14. Ne2 {[%emt 0:02:12]} Nc5 {[%emt 0:03:41]} 15. Nxd4 {[%emt 0:00:43]} exd4 {[%emt 0:00:08]} 16. Bc1 {[%emt 0:06:12]} Nxe4 {[%emt 0:06:20]} 17. O-O {[%emt 0:15:06]} Re8 {[%emt 0:08:26]} 18. Re1 {[%emt 0:13:05]} Qh4 {[%emt 0:06:18]} 19. Bxe4 {[%emt 0:04:19]} Rxe4 {[%emt 0:00:13]} 20. Rxe4 {[%emt 0:00:08]} Qxe4 {[%emt 0:00:09]} 21. b3 {[%emt 0:01:50]} c5 {[%emt 0:11:12]} 22. Ra2 {[%emt 0:02:22]} Re8 {[%emt 0:00:31]} 23. Kf1 {[%emt 0:00:27]} h5 {[%emt 0:06:20]} 24. Re2 {[%emt 0:02:06]} Qxe2+ {[%emt 0:00:23]} 25. Qxe2 {[%emt 0:00:02]} Rxe2 {[%emt 0:00:08]} 26. Kxe2 {[%emt 0:00:12]} Kf8 {[%emt 0:02:06]} 27. Kd3 {[%emt 0:00:20]} Ke7 {[%emt 0:01:38]} 28. Bd2 {[%emt 0:03:57]} Kf6 {[%emt 0:04:46]} 29. Bf4 {[%emt 0:01:42]} Bf8 {[%emt 0:00:34]} 30. b4 {[%emt 0:00:30]} b6 {[%emt 0:00:18]} 31. g4 {[%emt 0:01:11]} Ke7 {[%emt 0:07:02]} 32. Ke4 {[%emt 0:03:06]} Bg7 {[%emt 0:02:35]} 33. b5 {[%emt 0:01:33]} Be5 {[%emt 0:03:36]} 34. Bd2 {[%emt 0:00:50]} Kf8 {[%emt 0:01:30]} 35. a4 {[%emt 0:00:18]} Kg7 {[%emt 0:01:46]} 36. a5 {[%emt 0:00:14]} Kh7 {[%emt 0:00:42]} 37. axb6 {[%emt 0:00:06]} axb6 {[%emt 0:00:02]} 38. Ba5 {[%emt 0:00:02]} f5+ {[%emt 0:00:50]} 39. gxf5 {[%emt 0:00:50]} gxf5+ {[%emt 0:00:03]} 40. Kd3 {[%emt 0:00:56]} bxa5 {[%emt 0:01:39]} 41. b6 {[%emt 0:00:18]} Kg6 {[%emt 0:00:24]} 42. b7 {[%emt 0:00:02]} Kg5 {[%emt 0:00:07]} 43. b8=Q {[%emt 0:00:20]} Kh4 {[%emt 0:00:21]} 44. Qe8 {[%emt 0:01:31]} a4 {[%emt 0:00:27]} 45. Qxa4 {[%emt 0:02:13]} Kxh3 {[%emt 0:00:04]} 46. Qd7 {[%emt 0:00:59]} Kg4 {[%emt 0:00:19]} 47. Ke2 {[%emt 0:00:41]} h4 {[%emt 0:00:00]} 48. Qh7 {[%emt 0:00:43]} f4 {[%emt 0:01:19]} 49. Qg6+ {[%emt 0:00:49]} Kh3 {[%emt 0:00:23]} 50. Kf3 {[%emt 0:00:31]} d3 {[%emt 0:00:39]} 51. Qg2# {[%emt 0:00:14]} 1-0

[Event "Djerba Festival Open-B 2025"]
[Site "Djerba"]
[Date "2025.02.18"]
[Round "3.28"]
[White "Badrakova, Kseniya"]
[Black "Alouani, Ahmed"]
[Result "1/2-1/2"]
[Annotator "NA"]
[ECO "B12"]
[WhiteElo "1757"]
[BlackElo "1617"]
[PlyCount "83"]
[EventDate "2025.02.15"]
[EventType "swiss"]
[EventCountry "TUN"]
[SourceTitle "playchess.com"]
[Source "ChessBase"]
[SourceQuality "1"]
[TimeControl "5400+30"]

1. e4 {[%emt 0:00:03]} c6 {[%emt 0:01:41]} 2. d4 {[%emt 0:00:05]} d5 {[%emt 0:00:08]} 3. e5 {[%emt 0:00:04]} Bf5 {[%emt 0:01:34]} 4. h4 {[%emt 0:00:06]} h6 {[%emt 0:01:31]} 5. g4 {[%emt 0:00:23]} Be4 {[%emt 0:02:14]} 6. f3 {[%emt 0:00:22]} Bh7 {[%emt 0:02:24]} 7. Bd3 {[%emt 0:05:24]} Bxd3 {[%emt 0:03:22]} 8. Qxd3 {[%emt 0:01:38]} e6 {[%emt 0:01:17]} 9. f4 {[%emt 0:02:11]} c5 {[%emt 0:09:18]} 10. dxc5 {[%emt 0:06:23]} Qa5+ {[%emt 0:03:21]} 11. c3 {[%emt 0:08:24]} Qxc5 {[%emt 0:01:08]} 12. Be3 {[%emt 0:06:14]} Qc7 {[%emt 0:04:37]} 13. Nf3 {[%emt 0:06:17]} Nc6 {[%emt 0:03:29]} 14. Nbd2 {[%emt 0:08:01]} h5 {[%emt 0:14:14]} 15. Ng5 {[%emt 0:09:46]} Nh6 {[%emt 0:03:22]} 16. gxh5 {[%emt 0:10:22]} Nf5 {[%emt 0:00:32]} 17. Bf2 {[%emt 0:03:04]} Rxh5 {[%emt 0:01:57]} 18. Nb3 {[%emt 0:04:30]} O-O-O {[%emt 0:05:08]} 19. Nd4 {[%emt 0:12:16]} Ncxd4 {[%emt 0:01:13]} 20. cxd4 {[%emt 0:00:48]} Kb8 {[%emt 0:07:54]} 21. Ke2 {[%emt 0:01:23]} Qd7 {[%emt 0:06:14]} 22. Rac1 {[%emt 0:02:12]} f6 {[%emt 0:01:38]} 23. Nf3 {[%emt 0:00:22]} Be7 {[%emt 0:02:42]} 24. Rhg1 {[%emt 0:06:22]} Rhh8 {[%emt 0:01:24]} 25. Qb3 {[%emt 0:02:35]} Rc8 {[%emt 0:01:54]} 26. Rc3 {[%emt 0:00:49]} Rxc3 {[%emt 0:02:38]} 27. bxc3 {[%emt 0:00:21]} Rc8 {[%emt 0:00:38]} 28. Rb1 {[%emt 0:02:14]} Qc6 {[%emt 0:00:53]} 29. Kd2 {[%emt 0:01:12]} b6 {[%emt 0:01:20]} 30. a4 {[%emt 0:00:13]} Qc4 {[%emt 0:00:48]} 31. Qxc4 {[%emt 0:01:22]} Rxc4 {[%emt 0:00:15]} 32. a5 {[%emt 0:00:09]} Kb7 {[%emt 0:00:30]} 33. axb6 {[%emt 0:00:27]} axb6 {[%emt 0:00:16]} 34. Kd3 {[%emt 0:00:57]} Rc8 {[%emt 0:02:13]} 35. Re1 {[%emt 0:00:17]} Rc6 {[%emt 0:01:00]} 36. Rc1 {[%emt 0:00:40]} b5 {[%emt 0:00:34]} 37. Rb1 {[%emt 0:00:26]} Kb6 {[%emt 0:01:06]} 38. Be1 {[%emt 0:00:28]} Rc8 {[%emt 0:01:00]} 39. Bf2 {[%emt 0:00:08]} Kc6 {[%emt 0:00:52]} 40. Ra1 {[%emt 0:00:42]} Kb7 {[%emt 0:01:32]} 41. Rb1 {[%emt 0:00:25]} Kb6 {[%emt 0:01:28]} 42. Re1 {[%emt 0:01:25]} 1/2-1/2

[Event "Djerba Festival Open-B 2025"]
[Site "Djerba"]
[Date "2025.02.18"]
[Round "4.1"]
[White "Algadari, Mahmod"]
[Black "Lebret, Jean-Michel"]
[Result "0-1"]
[Annotator "ChessBase"]
[ECO "D32"]
[WhiteElo "1909"]
[BlackElo "1995"]
[PlyCount "122"]
[EventDate "2025.02.15"]
[EventType "swiss"]
[EventCountry "TUN"]
[SourceTitle "playchess.com"]
[Source "ChessBase"]
[SourceQuality "1"]
[TimeControl "5400+30"]

1. d4 {[%emt 0:02:26]} d5 {[%emt 0:00:41]} 2. c4 {[%emt 0:00:41]} e6 {[%emt 0:00:12]} 3. Nc3 {[%emt 0:02:11]} c5 {[%emt 0:00:44]} 4. cxd5 {[%emt 0:04:04]} exd5 {[%emt 0:00:25]} 5. e3 {[%emt 0:00:48]} Nf6 {[%emt 0:02:49]} 6. Nf3 {[%emt 0:01:08]} Nc6 {[%emt 0:00:39]} 7. Bb5 {[%emt 0:08:42]} Be7 {[%emt 0:01:59]} 8. Ne5 {[%emt 0:02:45]} Bd7 {[%emt 0:06:18]} 9. Nxd7 {[%emt 0:05:53]} Qxd7 {[%emt 0:00:08]} 10. dxc5 {[%emt 0:02:16]} Bxc5 {[%emt 0:01:52]} 11. O-O {[%emt 0:04:50]} O-O {[%emt 0:01:52]} 12. Qf3 {[%emt 0:05:28]} Qe6 {[%emt 0:12:08]} 13. Bxc6 {[%emt 0:03:54]} bxc6 {[%emt 0:00:45]} 14. b3 {[%emt 0:01:38]} Bd6 {[%emt 0:01:09]} 15. Bb2 {[%emt 0:02:41]} Ng4 {[%emt 0:07:43]} 16. g3 {[%emt 0:02:25]} f5 {[%emt 0:00:46]} 17. Ne2 {[%emt 0:02:16]} Qh6 {[%emt 0:10:18]} 18. Qg2 {[%emt 0:02:10]} Be5 {[%emt 0:16:42]} 19. Bxe5 {[%emt 0:03:48]} Nxe5 {[%emt 0:00:04]} 20. Rfd1 {[%emt 0:04:17]} Qd6 {[%emt 0:03:00]} 21. Rac1 {[%emt 0:01:46]} Rac8 {[%emt 0:04:31]} 22. Nd4 {[%emt 0:02:23]} g6 {[%emt 0:01:29]} 23. Rc2 {[%emt 0:02:26]} Rfd8 {[%emt 0:02:50]} 24. Rcd2 {[%emt 0:07:37]} Ng4 {[%emt 0:02:27]} 25. h3 {[%emt 0:01:03]} Nf6 {[%emt 0:00:03]} 26. Rc2 {[%emt 0:03:53]} Ne4 {[%emt 0:01:11]} 27. Rdc1 {[%emt 0:00:30]} c5 {[%emt 0:02:27]} 28. Nb5 {[%emt 0:04:18]} Qb6 {[%emt 0:03:16]} 29. Nc3 {[%emt 0:00:30]} Nxc3 {[%emt 0:02:46]} 30. Rxc3 {[%emt 0:00:01]} Qa5 {[%emt 0:02:41]} 31. R1c2 {[%emt 0:01:08]} Rd6 {[%emt 0:05:31]} 32. Qf3 {[%emt 0:02:20]} Qb4 {[%emt 0:02:58]} 33. h4 {[%emt 0:01:26]} Kg7 {[%emt 0:01:51]} 34. h5 {[%emt 0:01:14]} a5 {[%emt 0:01:53]} 35. Rd3 {[%emt 0:00:53]} Rcd8 {[%emt 0:00:05]} 36. hxg6 {[%emt 0:00:48]} hxg6 {[%emt 0:00:02]} 37. Rdc3 {[%emt 0:01:33]} d4 {[%emt 0:00:27]} 38. exd4 {[%emt 0:03:32]} cxd4 {[%emt 0:00:13]} 39. Rc7+ {[%emt 0:00:02]} Kf6 {[%emt 0:00:23]} 40. Qd3 {[%emt 0:01:47]} Qe1+ {[%emt 0:00:23]} 41. Qf1 {[%emt 0:03:21]} Qe4 {[%emt 0:00:50]} 42. Re2 {[%emt 0:01:27]} Qf3 {[%emt 0:01:27]} 43. Ree7 {[%emt 0:00:23]} Rh8 {[%emt 0:00:42]} 44. Rf7+ {[%emt 0:01:26]} Kg5 {[%emt 0:00:02]} 45. Rh7 {[%emt 0:01:36]} Rxh7 {[%emt 0:00:24]} 46. Rxh7 {[%emt 0:00:01]} Qg4 {[%emt 0:01:24]} 47. Qe1 {[%emt 0:00:38]} Qe4 {[%emt 0:00:20]} 48. Qc1+ {[%emt 0:00:51]} f4 {[%emt 0:00:23]} 49. Qc5+ {[%emt 0:00:52]} Rd5 {[%emt 0:00:14]} 50. Qf8 {[%emt 0:00:33]} fxg3 {[%emt 0:00:45]} 51. Qh6+ {[%emt 0:00:25]} Kf5 {[%emt 0:00:41]} 52. Rf7+ {[%emt 0:00:49]} Ke6 {[%emt 0:00:16]} 53. Qf8 {[%emt 0:00:34]} gxf2+ {[%emt 0:00:23]} 54. Rxf2 {[%emt 0:00:22]} Qe1+ {[%emt 0:00:29]} 55. Kh2 {[%emt 0:00:36]} Rh5+ {[%emt 0:00:16]} 56. Kg3 {[%emt 0:00:03]} Qg1+ {[%emt 0:00:21]} 57. Rg2 {[%emt 0:00:16]} Qe3+ {[%emt 0:00:28]} 58. Kg4 {[%emt 0:01:07]} Qh3+ {[%emt 0:00:18]} 59. Kf4 {[%emt 0:00:17]} Rf5+ {[%emt 0:00:19]} 60. Qxf5+ {[%emt 0:00:37]} Qxf5+ {[%emt 0:00:03]} 61. Kg3 {[%emt 0:00:08]} Ke5 {[%emt 0:03:14]} 0-1